[Event "EIRCC 2019"]
[Site "Tallinn"]
[Date "2019.12.05"]
[Round "7.23"]
[White "Shapiro, Viktor"]
[Black "Usmanov, Vasily"]
[Result "0-1"]
[ECO "A06"]
[WhiteElo "2231"]
[BlackElo "2428"]
[Annotator "NA"]
[PlyCount "90"]
[EventDate "2019.12.05"]
[EventType "swiss"]
[EventCountry "EST"]
[SourceTitle "playchess.com"]
[Source "ChessBase"]
[SourceQuality "1"]
[TimeControl "900+10"]

1. Nf3 {[%emt 0:00:31]} d5 {[%emt 0:00:00]} 2. g3 {[%emt 0:00:02]} g6 {[%emt 0:00:00]} 3. Bg2 {[%emt 0:00:01]} Bg7 {[%emt 0:00:00]} 4. O-O {[%emt 0:00:01]} e5 {[%emt 0:00:00]} 5. d3 {[%emt 0:00:01]} Ne7 {[%emt 0:00:00]} 6. Nbd2 {[%emt 0:00:10]} O-O {[%emt 0:00:00]} 7. c4 {[%emt 0:00:01]} Nbc6 {[%emt 0:00:34]} 8. Rb1 {[%emt 0:00:06]} a5 {[%emt 0:00:14]} 9. a3 {[%emt 0:00:17]} a4 {[%emt 0:00:34]} 10. b4 {[%emt 0:00:01]} axb3 {[%emt 0:00:02]} 11. Qxb3 {[%emt 0:00:01]} d4 {[%emt 0:01:37]} 12. e3 {[%emt 0:00:20]} Nf5 {[%emt 0:02:13]} 13. Ne4 {[%emt 0:00:03]} Qe7 {[%emt 0:00:35]} 14. Re1 {[%emt 0:00:06]} Rd8 {[%emt 0:00:04]} 15. g4 {[%emt 0:00:41]} Nh4 {[%emt 0:00:47]} 16. Nxh4 {[%emt 0:00:09]} Qxh4 {[%emt 0:00:02]} 17. h3 {[%emt 0:00:09]} f5 {[%emt 0:00:54]} 18. gxf5 {[%emt 0:00:19]} gxf5 {[%emt 0:00:01]} 19. Nc5 {[%emt 0:00:35]} dxe3 {[%emt 0:00:04]} 20. Bxe3 {[%emt 0:00:27]} f4 {[%emt 0:00:04]} 21. Nxb7 {[%emt 0:00:45]} fxe3 {[%emt 0:00:20]} 22. fxe3 {[%emt 0:00:06]} Rb8 {[%emt 0:03:49]} 23. Bxc6 {[%emt 0:01:09]} Qg3+ {[%emt 0:03:10]} 24. Kh1 {[%emt 0:00:10]} Qxh3+ {[%emt 0:00:04]} 25. Kg1 {[%emt 0:00:01]} Qg4+ {[%emt 0:00:07]} 26. Bg2 {[%emt 0:01:25]} Bxb7 {[%emt 0:00:21]} 27. c5+ {[%emt 0:03:38]} Kh8 {[%emt 0:00:17]} 28. Qc2 {[%emt 0:00:19]} Bxg2 {[%emt 0:00:28]} 29. Qxg2 {[%emt 0:00:01]} Qxg2+ {[%emt 0:00:09]} 30. Kxg2 {[%emt 0:00:01]} Rxb1 {[%emt 0:00:49]} 31. Rxb1 {[%emt 0:00:01]} Bf8 {[%emt 0:00:13]} 32. d4 {[%emt 0:01:54]} exd4 {[%emt 0:00:02]} 33. exd4 {[%emt 0:00:00]} Rxd4 {[%emt 0:00:02]} 34. Rb8 {[%emt 0:00:01]} Rg4+ {[%emt 0:00:49]} 35. Kf3 {[%emt 0:00:05]} Rg8 {[%emt 0:00:02]} 36. Rb5 {[%emt 0:00:58]} Rg5 {[%emt 0:00:32]} 37. a4 {[%emt 0:00:20]} Rxc5 {[%emt 0:00:07]} 38. Rb8 {[%emt 0:00:02]} Kg7 {[%emt 0:00:20]} 39. Ra8 {[%emt 0:00:02]} h5 {[%emt 0:00:22]} 40. a5 {[%emt 0:00:04]} Bd6 {[%emt 0:00:03]} 41. a6 {[%emt 0:00:01]} Ra5 {[%emt 0:00:02]} 42. a7 {[%emt 0:00:04]} Ra3+ {[%emt 0:00:05]} 43. Kg2 {[%emt 0:00:02]} h4 {[%emt 0:00:03]} 44. Kh1 {[%emt 0:00:07]} Ra2 {[%emt 0:00:05]} 45. Kg1 {[%emt 0:00:33]} Rxa7 {[%emt 0:00:08]} 0-1

[Event "EIRCC 2019"]
[Site "Tallinn"]
[Date "2019.12.05"]
[Round "7.24"]
[White "Gretarsson, Helgi Ass"]
[Black "Mickevicius, Juras"]
[Result "1/2-1/2"]
[ECO "A05"]
[WhiteElo "2421"]
[BlackElo "2288"]
[Annotator "NA"]
[PlyCount "131"]
[EventDate "2019.12.05"]
[EventType "swiss"]
[EventCountry "EST"]
[SourceTitle "playchess.com"]
[Source "ChessBase"]
[SourceQuality "1"]
[TimeControl "900+10"]

1. Nf3 {[%emt 0:00:00]} Nf6 {[%emt 0:00:00]} 2. g3 {[%emt 0:00:02]} d5 {[%emt 0:00:00]} 3. Bg2 {[%emt 0:00:01]} e6 {[%emt 0:00:00]} 4. O-O {[%emt 0:00:02]} Be7 {[%emt 0:00:00]} 5. b3 {[%emt 0:00:03]} O-O {[%emt 0:00:02]} 6. Bb2 {[%emt 0:00:01]} b6 {[%emt 0:00:23]} 7. c4 {[%emt 0:01:10]} c6 {[%emt 0:00:06]} 8. d3 {[%emt 0:00:12]} Bb7 {[%emt 0:00:07]} 9. Nbd2 {[%emt 0:00:05]} dxc4 {[%emt 0:00:33]} 10. bxc4 {[%emt 0:01:56]} c5 {[%emt 0:00:02]} 11. Qb3 {[%emt 0:01:04]} Nc6 {[%emt 0:00:07]} 12. Bc3 {[%emt 0:00:25]} Nd7 {[%emt 0:01:34]} 13. Qb2 {[%emt 0:01:10]} Bf6 {[%emt 0:00:19]} 14. Rfc1 {[%emt 0:00:01]} Bxc3 {[%emt 0:00:33]} 15. Rxc3 {[%emt 0:00:01]} Qc7 {[%emt 0:00:24]} 16. Nb3 {[%emt 0:01:02]} e5 {[%emt 0:00:29]} 17. Ne1 {[%emt 0:01:18]} Nd4 {[%emt 0:01:20]} 18. e3 {[%emt 0:00:39]} Bxg2 {[%emt 0:00:22]} 19. Kxg2 {[%emt 0:00:03]} Ne6 {[%emt 0:00:39]} 20. Qe2 {[%emt 0:00:38]} f5 {[%emt 0:01:17]} 21. Nd2 {[%emt 0:02:02]} Nf6 {[%emt 0:00:24]} 22. a4 {[%emt 0:00:39]} Rae8 {[%emt 0:00:40]} 23. a5 {[%emt 0:00:06]} f4 {[%emt 0:00:02]} 24. axb6 {[%emt 0:00:47]} axb6 25. Rca3 fxe3 {[%emt 0:00:33]} 26. fxe3 {[%emt 0:00:06]} e4 {[%emt 0:00:48]} 27. Nxe4 {[%emt 0:00:38]} Nxe4 {[%emt 0:00:05]} 28. dxe4 {[%emt 0:00:01]} Ng5 {[%emt 0:00:21]} 29. Qg4 {[%emt 0:00:04]} Qe5 {[%emt 0:00:53]} 30. Nd3 {[%emt 0:00:54]} Qxe4+ {[%emt 0:00:05]} 31. Qxe4 {[%emt 0:00:04]} Rxe4 {[%emt 0:00:01]} 32. h4 {[%emt 0:00:29]} Ne6 {[%emt 0:00:12]} 33. Nb2 {[%emt 0:00:22]} g5 {[%emt 0:01:28]} 34. hxg5 {[%emt 0:00:57]} Nxg5 {[%emt 0:00:01]} 35. Rd3 {[%emt 0:00:05]} Rfe8 {[%emt 0:01:21]} 36. Raa3 {[%emt 0:02:24]} Nf7 {[%emt 0:00:06]} 37. Rab3 {[%emt 0:00:09]} Ne5 {[%emt 0:01:41]} 38. Rd6 {[%emt 0:00:18]} Nxc4 {[%emt 0:00:48]} 39. Nxc4 {[%emt 0:00:09]} Rxc4 {[%emt 0:00:01]} 40. Rbxb6 {[%emt 0:00:10]} Rce4 {[%emt 0:00:34]} 41. Rbc6 {[%emt 0:00:10]} Rxe3 {[%emt 0:00:05]} 42. Rxc5 {[%emt 0:00:01]} R3e6 {[%emt 0:00:05]} 43. Rdd5 {[%emt 0:00:04]} Rg6 {[%emt 0:00:06]} 44. Rd7 {[%emt 0:00:05]} Rg7 {[%emt 0:00:03]} 45. Rd3 {[%emt 0:00:04]} Rf8 {[%emt 0:00:05]} 46. Kh3 {[%emt 0:00:05]} Rg6 {[%emt 0:00:20]} 47. g4 {[%emt 0:00:18]} Kg7 {[%emt 0:00:01]} 48. Rh5 {[%emt 0:00:22]} Rf7 {[%emt 0:00:02]} 49. Kh4 {[%emt 0:00:21]} Ra6 {[%emt 0:00:02]} 50. Rd4 {[%emt 0:00:12]} Rb6 {[%emt 0:00:01]} 51. Rdd5 {[%emt 0:00:30]} Rc6 {[%emt 0:00:01]} 52. Rdg5+ {[%emt 0:00:01]} Rg6 {[%emt 0:00:01]} 53. Rxg6+ {[%emt 0:00:04]} Kxg6 {[%emt 0:00:09]} 54. Rb5 {[%emt 0:00:02]} Rf6 {[%emt 0:00:05]} 55. Rg5+ {[%emt 0:00:09]} Kf7 {[%emt 0:00:08]} 56. Kh5 {[%emt 0:00:04]} Rc6 {[%emt 0:01:05]} 57. Ra5 {[%emt 0:00:03]} Rd6 {[%emt 0:00:04]} 58. Ra7+ {[%emt 0:00:15]} Kg8 {[%emt 0:00:01]} 59. Kg5 {[%emt 0:00:01]} Rc6 {[%emt 0:00:01]} 60. Kf5 {[%emt 0:00:07]} Rb6 {[%emt 0:00:01]} 61. Re7 {[%emt 0:00:08]} Ra6 {[%emt 0:00:06]} 62. g5 {[%emt 0:00:02]} Rb6 {[%emt 0:00:03]} 63. Kg4 {[%emt 0:00:03]} Ra6 {[%emt 0:00:02]} 64. Kh5 {[%emt 0:00:01]} Rb6 {[%emt 0:00:00]} 65. Ra7 {[%emt 0:00:06]} Rc6 {[%emt 0:00:01]} 66. Rd7 {[%emt 0:00:09]} 1/2-1/2

[Event "EIRCC 2019"]
[Site "Tallinn"]
[Date "2019.12.05"]
[Round "7.25"]
[White "Van Foreest, Lucas"]
[Black "Nasibullin, Iskander"]
[Result "0-1"]
[ECO "B40"]
[WhiteElo "2399"]
[BlackElo "2270"]
[Annotator "NA"]
[PlyCount "184"]
[EventDate "2019.12.05"]
[EventType "swiss"]
[EventCountry "EST"]
[SourceTitle "playchess.com"]
[Source "ChessBase"]
[SourceQuality "1"]
[TimeControl "900+10"]

1. e4 {[%emt 0:00:00]} c5 {[%emt 0:00:00]} 2. Nf3 {[%emt 0:00:00]} e6 {[%emt 0:00:00]} 3. d4 {[%emt 0:00:00]} cxd4 {[%emt 0:00:00]} 4. Nxd4 {[%emt 0:00:00]} Nf6 {[%emt 0:00:00]} 5. Nc3 {[%emt 0:00:00]} Bb4 {[%emt 0:00:00]} 6. e5 {[%emt 0:00:00]} Nd5 {[%emt 0:00:00]} 7. Bd2 {[%emt 0:00:27]} Bxc3 {[%emt 0:00:01]} 8. bxc3 {[%emt 0:00:03]} O-O {[%emt 0:00:09]} 9. c4 {[%emt 0:00:19]} Ne7 10. Bb4 {[%emt 0:00:33]} Nbc6 {[%emt 0:00:10]} 11. Nxc6 {[%emt 0:00:06]} Nxc6 {[%emt 0:00:02]} 12. Bxf8 {[%emt 0:00:02]} Qa5+ {[%emt 0:00:04]} 13. Ke2 {[%emt 0:00:29]} Qxe5+ {[%emt 0:00:12]} 14. Kd2 {[%emt 0:00:01]} Kxf8 {[%emt 0:01:19]} 15. Bd3 {[%emt 0:00:18]} Qg5+ {[%emt 0:00:48]} 16. Ke2 {[%emt 0:00:23]} d5 {[%emt 0:01:56]} 17. h4 {[%emt 0:00:26]} Qe5+ {[%emt 0:01:49]} 18. Kf1 {[%emt 0:00:02]} dxc4 {[%emt 0:00:15]} 19. Bxc4 {[%emt 0:00:01]} b5 {[%emt 0:00:23]} 20. Bd3 {[%emt 0:00:23]} Bb7 {[%emt 0:00:41]} 21. Rb1 {[%emt 0:00:01]} a6 {[%emt 0:02:53]} 22. Qe1 {[%emt 0:00:02]} Qf6 {[%emt 0:00:35]} 23. a4 {[%emt 0:00:11]} Rd8 {[%emt 0:01:45]} 24. axb5 {[%emt 0:00:02]} axb5 {[%emt 0:00:02]} 25. Rh3 {[%emt 0:00:12]} Nd4 {[%emt 0:01:57]} 26. Qa5 {[%emt 0:00:04]} h5 {[%emt 0:00:40]} 27. Qb6 {[%emt 0:00:07]} Bd5 {[%emt 0:00:25]} 28. Rb4 {[%emt 0:02:30]} Bc4 {[%emt 0:02:28]} 29. Bxc4 {[%emt 0:01:11]} bxc4 {[%emt 0:00:05]} 30. Qc5+ {[%emt 0:02:21]} Kg8 {[%emt 0:00:37]} 31. Qxc4 {[%emt 0:00:13]} Nf5 {[%emt 0:00:35]} 32. Rd3 {[%emt 0:03:16]} Qa1+ {[%emt 0:00:06]} 33. Ke2 {[%emt 0:00:01]} Ra8 {[%emt 0:00:10]} 34. Rd1 {[%emt 0:00:14]} Qe5+ {[%emt 0:00:15]} 35. Qe4 {[%emt 0:00:05]} Qa5 {[%emt 0:00:01]} 36. Kf1 {[%emt 0:00:09]} Rc8 {[%emt 0:00:03]} 37. Kg1 {[%emt 0:00:05]} Qc5 {[%emt 0:00:09]} 38. Rc1 {[%emt 0:00:15]} Ng3 {[%emt 0:00:16]} 39. Qe1 {[%emt 0:00:21]} Ne2+ {[%emt 0:00:04]} 40. Qxe2 {[%emt 0:00:01]} Qxb4 {[%emt 0:00:02]} 41. c4 {[%emt 0:00:19]} Qc5 {[%emt 0:00:02]} 42. g3 {[%emt 0:00:08]} g6 {[%emt 0:00:12]} 43. Qe4 {[%emt 0:00:03]} Kg7 {[%emt 0:00:25]} 44. Qf4 {[%emt 0:00:02]} Rd8 {[%emt 0:00:29]} 45. Qf3 {[%emt 0:00:33]} Rd4 {[%emt 0:00:10]} 46. Qe3 {[%emt 0:00:09]} e5 {[%emt 0:00:07]} 47. Qe2 {[%emt 0:00:12]} Kf6 {[%emt 0:00:08]} 48. Rb1 {[%emt 0:00:49]} Rxc4 {[%emt 0:00:15]} 49. Qf3+ {[%emt 0:00:10]} Kg7 {[%emt 0:00:13]} 50. Rb7 {[%emt 0:00:03]} Rc1+ {[%emt 0:00:02]} 51. Kh2 {[%emt 0:00:03]} Qc4 {[%emt 0:00:06]} 52. Qe3 {[%emt 0:00:31]} Kg8 {[%emt 0:00:22]} 53. Qxe5 {[%emt 0:00:38]} Rh1+ {[%emt 0:00:07]} 54. Kxh1 {[%emt 0:00:34]} Qc6+ {[%emt 0:00:02]} 55. Kh2 {[%emt 0:00:02]} Qxb7 {[%emt 0:00:01]} 56. Qd4 {[%emt 0:00:02]} Qf3 {[%emt 0:00:03]} 57. Kg1 {[%emt 0:00:02]} Qf5 {[%emt 0:00:05]} 58. Kg2 {[%emt 0:00:02]} Kh7 {[%emt 0:00:04]} 59. Qc4 {[%emt 0:00:04]} Kg8 {[%emt 0:00:03]} 60. f3 {[%emt 0:00:01]} Qf6 {[%emt 0:00:08]} 61. Qe2 {[%emt 0:00:09]} Qd6 {[%emt 0:00:13]} 62. Qf2 {[%emt 0:00:02]} Qd5 {[%emt 0:00:01]} 63. Qc2 {[%emt 0:00:02]} Kg7 {[%emt 0:00:09]} 64. Qb2+ {[%emt 0:00:22]} Kg8 {[%emt 0:00:02]} 65. Kf2 {[%emt 0:00:03]} Qc5+ {[%emt 0:00:01]} 66. Ke2 {[%emt 0:00:02]} Qc4+ {[%emt 0:00:07]} 67. Ke3 {[%emt 0:00:05]} Qc5+ {[%emt 0:00:02]} 68. Qd4 {[%emt 0:00:04]} Qc1+ {[%emt 0:00:04]} 69. Ke4 {[%emt 0:00:04]} Qe1+ {[%emt 0:00:10]} 70. Kf4 {[%emt 0:00:02]} Qc1+ {[%emt 0:00:23]} 71. Ke5 {[%emt 0:00:11]} Qe1+ {[%emt 0:00:59]} 72. Kf6 {[%emt 0:00:39]} Qe6+ {[%emt 0:00:22]} 73. Kg5 {[%emt 0:00:02]} Kh7 {[%emt 0:00:17]} 74. Kf4 {[%emt 0:01:04]} Qf5+ {[%emt 0:00:14]} 75. Ke3 {[%emt 0:00:02]} Qe6+ {[%emt 0:00:01]} 76. Qe4 {[%emt 0:00:03]} Qb3+ {[%emt 0:00:01]} 77. Kf4 {[%emt 0:00:02]} Qc3 {[%emt 0:00:24]} 78. Qd5 {[%emt 0:00:11]} Qf6+ {[%emt 0:00:08]} 79. Ke4 {[%emt 0:00:01]} Qe7+ {[%emt 0:00:02]} 80. Kd4 {[%emt 0:00:08]} Qb4+ {[%emt 0:00:07]} 81. Kd3 {[%emt 0:00:04]} Qa3+ {[%emt 0:00:02]} 82. Kd4 {[%emt 0:00:12]} Qb2+ {[%emt 0:00:05]} 83. Kc5 {[%emt 0:00:07]} Qc3+ {[%emt 0:00:04]} 84. Kd6 {[%emt 0:00:04]} Qf6+ {[%emt 0:00:30]} 85. Kd7 {[%emt 0:00:01]} Kg8 {[%emt 0:00:22]} 86. f4 {[%emt 0:00:10]} Qa1 {[%emt 0:00:15]} 87. Ke7 {[%emt 0:00:17]} Qa3+ {[%emt 0:00:09]} 88. Kf6 {[%emt 0:00:06]} Qc3+ {[%emt 0:00:09]} 89. Qe5 {[%emt 0:00:09]} Qc6+ {[%emt 0:00:02]} 90. Kg5 {[%emt 0:00:03]} Kh7 {[%emt 0:00:20]} 91. f5 {[%emt 0:00:03]} f6+ {[%emt 0:00:07]} 92. Qxf6 {[%emt 0:00:24]} Qc1# {[%emt 0:00:01]} 0-1

[Event "EIRCC 2019"]
[Site "Tallinn"]
[Date "2019.12.05"]
[Round "7.26"]
[White "Vlassow, Valentin"]
[Black "Murashova, Ekaterina"]
[Result "1-0"]
[ECO "C58"]
[WhiteElo "2394"]
[BlackElo "2196"]
[Annotator "NA"]
[PlyCount "87"]
[EventDate "2019.12.05"]
[EventType "swiss"]
[EventCountry "EST"]
[SourceTitle "playchess.com"]
[Source "ChessBase"]
[SourceQuality "1"]
[TimeControl "900+10"]

1. e4 {[%emt 0:00:00]} e5 {[%emt 0:00:00]} 2. Nf3 {[%emt 0:00:00]} Nc6 {[%emt 0:00:00]} 3. Bc4 {[%emt 0:00:00]} Nf6 {[%emt 0:00:08]} 4. Ng5 {[%emt 0:00:00]} d5 {[%emt 0:00:03]} 5. exd5 {[%emt 0:00:00]} Na5 {[%emt 0:00:02]} 6. d3 {[%emt 0:00:01]} h6 {[%emt 0:05:10]} 7. Nf3 {[%emt 0:00:01]} Bg4 {[%emt 0:02:20]} 8. h3 {[%emt 0:01:22]} Bxf3 {[%emt 0:00:13]} 9. Qxf3 {[%emt 0:00:02]} e4 {[%emt 0:02:48]} 10. Qe2 {[%emt 0:00:03]} Nxc4 {[%emt 0:00:06]} 11. dxc4 {[%emt 0:00:01]} Bd6 {[%emt 0:00:31]} 12. Nc3 {[%emt 0:00:51]} O-O {[%emt 0:00:04]} 13. Be3 {[%emt 0:00:03]} Be5 {[%emt 0:00:06]} 14. O-O {[%emt 0:00:16]} Re8 {[%emt 0:00:33]} 15. Rad1 {[%emt 0:00:21]} Bxc3 16. bxc3 {[%emt 0:00:01]} Qe7 {[%emt 0:01:03]} 17. c5 {[%emt 0:00:14]} Red8 {[%emt 0:01:14]} 18. c4 {[%emt 0:00:52]} Nd7 {[%emt 0:00:12]} 19. d6 {[%emt 0:00:35]} cxd6 {[%emt 0:00:17]} 20. cxd6 {[%emt 0:00:01]} Qe6 {[%emt 0:00:02]} 21. c5 {[%emt 0:00:58]} Qxa2 {[%emt 0:01:32]} 22. Qb5 {[%emt 0:00:04]} Rac8 {[%emt 0:00:50]} 23. c4 {[%emt 0:05:16]} a6 {[%emt 0:00:18]} 24. Qb4 {[%emt 0:00:12]} Ne5 {[%emt 0:00:44]} 25. Qxb7 {[%emt 0:00:37]} Qxc4 {[%emt 0:00:10]} 26. Rc1 {[%emt 0:00:41]} Qa4 {[%emt 0:00:26]} 27. c6 {[%emt 0:00:18]} Rxc6 {[%emt 0:00:11]} 28. Qe7 {[%emt 0:00:41]} Rcxd6 {[%emt 0:00:21]} 29. Qxe5 {[%emt 0:00:03]} Rd5 {[%emt 0:00:04]} 30. Qb2 {[%emt 0:02:06]} Rd1 {[%emt 0:00:07]} 31. Qe2 {[%emt 0:01:01]} Rxf1+ {[%emt 0:00:06]} 32. Qxf1 {[%emt 0:00:02]} Rd3 {[%emt 0:00:09]} 33. Qe2 {[%emt 0:00:14]} Qb5 {[%emt 0:00:10]} 34. Qg4 {[%emt 0:00:17]} Qd5 {[%emt 0:00:12]} 35. Bxh6 {[%emt 0:00:10]} g6 {[%emt 0:00:15]} 36. Bf4 {[%emt 0:00:44]} Kg7 {[%emt 0:00:04]} 37. Kh2 {[%emt 0:00:27]} Qf5 {[%emt 0:00:25]} 38. Qxf5 {[%emt 0:00:36]} gxf5 {[%emt 0:00:01]} 39. Rc6 {[%emt 0:00:01]} Ra3 {[%emt 0:00:05]} 40. Be5+ {[%emt 0:00:07]} Kg8 {[%emt 0:00:11]} 41. h4 {[%emt 0:00:08]} e3 {[%emt 0:00:19]} 42. Rc8+ {[%emt 0:01:00]} Kh7 {[%emt 0:00:00]} 43. h5 {[%emt 0:00:04]} f6 {[%emt 0:00:05]} 44. Bxf6 {[%emt 0:00:06]} 1-0

[Event "EIRCC 2019"]
[Site "Tallinn"]
[Date "2019.12.05"]
[Round "7.27"]
[White "Kourousis, Epaminondas"]
[Black "Varvadoukas, Theodoros"]
[Result "1-0"]
[ECO "A04"]
[WhiteElo "2392"]
[BlackElo "2146"]
[Annotator "NA"]
[PlyCount "113"]
[EventDate "2019.12.05"]
[EventType "swiss"]
[EventCountry "EST"]
[SourceTitle "playchess.com"]
[Source "ChessBase"]
[SourceQuality "1"]
[TimeControl "900+10"]

1. Nf3 {[%emt 0:00:02]} g6 {[%emt 0:00:00]} 2. g3 {[%emt 0:00:23]} Bg7 {[%emt 0:00:00]} 3. Bg2 {[%emt 0:00:01]} d6 {[%emt 0:00:00]} 4. d4 {[%emt 0:00:03]} c5 {[%emt 0:00:00]} 5. O-O {[%emt 0:00:49]} cxd4 {[%emt 0:00:40]} 6. Nxd4 {[%emt 0:00:01]} Nf6 {[%emt 0:00:01]} 7. c4 {[%emt 0:00:03]} Qc7 {[%emt 0:00:08]} 8. b3 {[%emt 0:00:19]} Nc6 {[%emt 0:00:11]} 9. Nc3 {[%emt 0:00:39]} Nxd4 {[%emt 0:00:09]} 10. Qxd4 {[%emt 0:00:01]} O-O {[%emt 0:00:03]} 11. Bb2 {[%emt 0:00:06]} Be6 {[%emt 0:00:33]} 12. Qd2 {[%emt 0:00:47]} Rfc8 {[%emt 0:00:11]} 13. Rfd1 {[%emt 0:00:43]} a6 {[%emt 0:00:04]} 14. Rac1 {[%emt 0:00:17]} Rab8 {[%emt 0:00:01]} 15. h4 {[%emt 0:01:01]} Qa5 {[%emt 0:00:14]} 16. a4 {[%emt 0:04:14]} Qb4 {[%emt 0:00:20]} 17. Nd5 {[%emt 0:03:26]} Qxd2 {[%emt 0:03:03]} 18. Rxd2 {[%emt 0:00:31]} Nxd5 {[%emt 0:00:04]} 19. Bxg7 {[%emt 0:00:03]} Kxg7 {[%emt 0:00:13]} 20. Bxd5 {[%emt 0:00:02]} b5 {[%emt 0:00:09]} 21. axb5 {[%emt 0:00:41]} axb5 {[%emt 0:00:01]} 22. Ra1 {[%emt 0:02:59]} Bxd5 {[%emt 0:02:12]} 23. cxd5 {[%emt 0:00:01]} Rc3 {[%emt 0:00:01]} 24. Ra7 {[%emt 0:00:13]} Kf8 {[%emt 0:02:39]} 25. Rd3 {[%emt 0:00:12]} b4 {[%emt 0:00:04]} 26. Re3 {[%emt 0:00:47]} Rxe3 {[%emt 0:00:23]} 27. fxe3 {[%emt 0:00:01]} Rb5 {[%emt 0:00:01]} 28. Kf2 {[%emt 0:00:56]} f5 {[%emt 0:00:23]} 29. Kf3 {[%emt 0:00:09]} Kf7 {[%emt 0:00:01]} 30. Ra4 {[%emt 0:00:18]} Kf6 {[%emt 0:00:03]} 31. Kf4 {[%emt 0:00:03]} h6 {[%emt 0:00:01]} 32. e4 {[%emt 0:00:01]} g5+ {[%emt 0:00:02]} 33. hxg5+ {[%emt 0:00:01]} hxg5+ {[%emt 0:00:01]} 34. Ke3 {[%emt 0:00:08]} Ke5 {[%emt 0:00:28]} 35. Ra7 {[%emt 0:00:17]} fxe4 {[%emt 0:05:02]} 36. Rxe7+ {[%emt 0:00:02]} Kxd5 {[%emt 0:00:01]} 37. Rxe4 {[%emt 0:00:13]} Rb7 {[%emt 0:00:32]} 38. Rg4 {[%emt 0:00:03]} Re7+ {[%emt 0:00:32]} 39. Kd3 {[%emt 0:00:29]} Kc5 {[%emt 0:00:31]} 40. Rxg5+ {[%emt 0:00:07]} d5 {[%emt 0:00:00]} 41. Rg8 {[%emt 0:00:06]} Re4 {[%emt 0:00:03]} 42. e3 {[%emt 0:00:11]} Kd6 {[%emt 0:00:03]} 43. Rh8 {[%emt 0:00:28]} Rg4 {[%emt 0:00:07]} 44. Rh3 {[%emt 0:00:02]} Ke5 {[%emt 0:00:12]} 45. Ke2 {[%emt 0:00:05]} d4 {[%emt 0:00:33]} 46. Rh4 {[%emt 0:00:05]} Rxg3 {[%emt 0:02:01]} 47. Rxd4 {[%emt 0:00:01]} Rg1 {[%emt 0:00:01]} 48. Rxb4 {[%emt 0:00:02]} Rb1 {[%emt 0:00:05]} 49. Kd2 {[%emt 0:00:25]} Kd5 {[%emt 0:00:07]} 50. Rd4+ {[%emt 0:00:11]} Kc5 {[%emt 0:00:01]} 51. Rd3 {[%emt 0:00:08]} Kb4 {[%emt 0:00:23]} 52. e4 {[%emt 0:00:13]} Rh1 {[%emt 0:00:07]} 53. e5 {[%emt 0:00:20]} Rh5 {[%emt 0:00:29]} 54. e6 {[%emt 0:00:05]} Rh7 {[%emt 0:00:31]} 55. Re3 {[%emt 0:00:17]} Re7 {[%emt 0:00:01]} 56. Re5 {[%emt 0:00:14]} Kxb3 {[%emt 0:00:12]} 57. Kd3 {[%emt 0:00:02]} 1-0

[Event "EIRCC 2019"]
[Site "Tallinn"]
[Date "2019.12.05"]
[Round "7.28"]
[White "Krupenski, Juri"]
[Black "Zabolotnov, Evgeny"]
[Result "0-1"]
[ECO "D10"]
[WhiteElo "2373"]
[BlackElo "2021"]
[Annotator "NA"]
[PlyCount "72"]
[EventDate "2019.12.05"]
[EventType "swiss"]
[EventCountry "EST"]
[SourceTitle "playchess.com"]
[Source "ChessBase"]
[SourceQuality "1"]
[TimeControl "900+10"]

1. d4 {[%emt 0:00:00]} d5 {[%emt 0:00:00]} 2. c4 {[%emt 0:00:00]} c6 {[%emt 0:00:00]} 3. Nc3 {[%emt 0:00:00]} Nf6 {[%emt 0:00:00]} 4. e3 {[%emt 0:00:04]} Bf5 {[%emt 0:00:00]} 5. cxd5 {[%emt 0:01:01]} cxd5 {[%emt 0:00:00]} 6. Qb3 {[%emt 0:00:02]} Nc6 {[%emt 0:00:01]} 7. Qxb7 {[%emt 0:00:23]} Bd7 {[%emt 0:00:01]} 8. Qb3 {[%emt 0:00:30]} Rb8 {[%emt 0:00:01]} 9. Qd1 {[%emt 0:00:05]} e5 {[%emt 0:00:02]} 10. Nge2 {[%emt 0:01:14]} Bd6 {[%emt 0:00:37]} 11. dxe5 {[%emt 0:00:14]} Nxe5 {[%emt 0:01:03]} 12. Nd4 {[%emt 0:00:06]} O-O {[%emt 0:00:14]} 13. Be2 {[%emt 0:00:03]} Qe7 {[%emt 0:00:27]} 14. O-O {[%emt 0:00:31]} Rfc8 {[%emt 0:00:05]} 15. Ndb5 {[%emt 0:03:39]} Bc5 {[%emt 0:00:25]} 16. b3 {[%emt 0:00:35]} a6 {[%emt 0:04:48]} 17. Nd4 {[%emt 0:00:03]} Bb4 {[%emt 0:00:01]} 18. Nb1 {[%emt 0:00:30]} Rb6 {[%emt 0:02:18]} 19. Bb2 {[%emt 0:00:34]} Ne4 {[%emt 0:00:35]} 20. Nf3 {[%emt 0:01:08]} Nxf3+ {[%emt 0:00:46]} 21. Bxf3 {[%emt 0:00:02]} Rg6 {[%emt 0:01:47]} 22. Qd4 {[%emt 0:02:18]} Bd6 {[%emt 0:01:25]} 23. g3 {[%emt 0:01:52]} Rc2 {[%emt 0:02:15]} 24. Bxe4 {[%emt 0:02:07]} dxe4 {[%emt 0:00:37]} 25. Nd2 {[%emt 0:00:19]} Bc5 {[%emt 0:00:50]} 26. Qd5 {[%emt 0:00:50]} Bc6 {[%emt 0:00:45]} 27. Qf5 {[%emt 0:00:33]} Rxd2 {[%emt 0:00:01]} 28. Rac1 {[%emt 0:00:12]} Rxb2 {[%emt 0:00:20]} 29. Rxc5 {[%emt 0:00:02]} Bd7 {[%emt 0:00:12]} 30. Qd5 {[%emt 0:00:04]} h6 {[%emt 0:00:07]} 31. Rc7 {[%emt 0:00:07]} Rd6 {[%emt 0:00:03]} 32. Qc5 {[%emt 0:00:09]} Qf6 {[%emt 0:00:13]} 33. Ra7 {[%emt 0:00:27]} Rdd2 {[%emt 0:00:14]} 34. Ra8+ {[%emt 0:00:41]} Kh7 {[%emt 0:00:01]} 35. Qf8 {[%emt 0:00:11]} Rxf2 {[%emt 0:00:09]} 36. Qh8+ {[%emt 0:00:01]} Kg6 {[%emt 0:00:00]} 0-1